bitfinex/quotes_BTCUSD_20250320
["timestamp","ask_amount","ask_price","bid_price","bid_amount"]
[1742483896391,0.70630494,85815.0,85814.0,0.23306]
[1742483896635,0.533062,85814.0,85810.0,0.00029436]
[1742483896835,0.3,85814.0,85813.0,0.011653]
[1742483897428,0.3,85814.0,85813.0,0.14576888]
[1742483898013,0.01827839,85826.0,85825.0,0.244683]
[1742483898292,0.01827839,85826.0,85825.0,0.243683]
[1742483898909,0.3,85830.0,85825.0,0.36225803]
[1742483899114,0.40530494,85840.0,85831.0,0.244666]
[1742483899297,0.01827646,85837.0,85831.0,0.37878188]
[1742483899508,0.01827646,85837.0,85831.0,0.244666]
[1742483899927,0.01827646,85837.0,85831.0,0.40200852]
[1742483900137,0.01170491,85843.0,85831.0,0.40200852]
[1742483900806,0.01170491,85843.0,85831.0,0.40600852]
[1742483901152,0.01170491,85843.0,85831.0,0.40100852]
[1742483901509,6e-07,85832.0,85831.0,0.98576852]
[1742483901833,0.40530494,85877.0,85875.0,0.011644]
[1742483902091,0.40530494,85877.0,85875.0,0.232896]
[1742483902289,0.41413227,85877.0,85869.0,0.232911]
[1742483902463,0.011647,85858.0,85851.0,0.232961]
[1742483902638,0.3,85853.0,85851.0,0.02332005]
[1742483902840,0.3,85852.0,85851.0,0.25628105]
[1742483903253,0.35587162,85852.0,85851.0,0.26792905]
[1742483903417,0.35587162,85852.0,85849.0,0.244614]
[1742483903418,0.35587162,85852.0,85849.0,0.232966]
[1742483903617,0.3,85851.0,85850.0,0.011648]
[1742483903866,0.3,85851.0,85849.0,0.232966]
[1742483904020,0.3,85851.0,85846.0,0.243614]
[1742483904218,0.3,85845.0,85844.0,0.02361663]
[1742483904441,0.3,85845.0,85844.0,0.011649]
[1742483904653,0.3,85845.0,85844.0,0.16913397]
[1742483905305,0.03976152,85850.0,85849.0,0.011648]
[1742483905570,0.03976152,85850.0,85849.0,0.244615]
[1742483905788,0.03976152,85850.0,85849.0,0.232967]
[1742483906007,0.03976152,85850.0,85849.0,0.244615]
[1742483906167,0.03976152,85850.0,85849.0,0.36419003]
[1742483907460,0.02148908,85850.0,85849.0,0.36419003]
[1742483907630,0.02148908,85850.0,85849.0,0.37773088]
[1742483907832,0.0003396,85852.0,85851.0,0.244609]
[1742483908040,0.0003396,85852.0,85851.0,0.37872488]
[1742483908577,6e-07,85852.0,85851.0,0.42362488]
[1742483908794,6.4e-07,85858.0,85857.0,0.244592]
[1742483908995,0.40530494,85883.0,85873.0,0.244547]
[1742483909139,0.40530494,85895.0,85876.0,0.25807785]
[1742483909347,0.40530494,85895.0,85892.0,0.232848]
[1742483909571,0.244514,85885.0,85881.0,0.232878]
[1742483909774,0.232907,85872.0,85869.0,0.232911]
[1742483909983,0.3,85871.0,85870.0,0.232909]
[1742483910914,0.70530494,85871.0,85870.0,0.232909]
[1742483911109,0.70530494,85871.0,85870.0,0.244554]
[1742483911273,0.70530494,85871.0,85870.0,0.37866988]
[1742483911937,0.70530494,85871.0,85870.0,0.38366988]
[1742483912091,0.70530494,85871.0,85870.0,0.37866988]
[1742483912316,0.70530494,85871.0,85870.0,0.244554]
[1742483912551,0.70630494,85871.0,85870.0,0.249554]
[1742483912765,0.70630494,85871.0,85870.0,0.005]
[1742483912926,0.95085694,85871.0,85870.0,0.005]
[1742483913549,0.311645,85869.0,85866.0,0.232919]
[1742483913862,0.532913,85869.0,85866.0,0.232919]
[1742483914081,0.3,85869.0,85868.0,0.24456]
[1742483914636,0.3,85870.0,85869.0,0.25909785]
[1742483914833,0.3,85870.0,85869.0,0.37867288]
[1742483915711,0.40530494,85871.0,85870.0,0.25909585]
[1742483915914,0.0182684,85888.0,85887.0,0.244507]
[1742483916045,0.01839311,85888.0,85881.0,0.011644]
[1742483916245,0.01839311,85888.0,85882.0,0.232875]
[1742483916472,0.31839311,85888.0,85886.0,0.232865]
[1742483916651,0.31839311,85888.0,85885.0,0.232864]
[1742483916829,0.31839311,85888.0,85886.0,0.232866]
[1742483917041,0.31839311,85888.0,85879.0,0.011644]
[1742483917255,0.011643,85887.0,85879.0,0.011644]
[1742483917460,0.3,85886.0,85880.0,0.011644]
[1742483917759,0.3,85886.0,85884.0,0.232871]
[1742483917958,0.3,85886.0,85885.0,0.232869]
[1742483918343,0.3,85886.0,85885.0,0.244512]
[1742483918548,0.01839311,85888.0,85887.0,0.232864]
[1742483918676,0.01839311,85888.0,85887.0,0.244507]
[1742483918884,0.00012471,85888.0,85887.0,0.244507]
[1742483919665,0.00012471,85888.0,85887.0,0.37862288]
[1742483919982,0.00012471,85888.0,85887.0,0.52222288]
[1742483920197,0.00012471,85888.0,85887.0,2.07102288]
[1742483920606,0.00012471,85888.0,85887.0,2.14882288]
[1742483921406,0.00112471,85888.0,85887.0,2.15182288]
[1742483921603,0.00112471,85888.0,85887.0,2.14882288]
[1742483922022,0.00212471,85888.0,85887.0,2.15182288]
[1742483923020,0.00212471,85888.0,85887.0,2.05948203]
[1742483923226,0.00212471,85888.0,85887.0,0.51068203]
[1742483923763,0.00212471,85888.0,85887.0,0.36708203]
[1742483924220,0.00012471,85888.0,85887.0,0.36408203]
[1742483924635,0.00112471,85888.0,85887.0,0.36708203]
[1742483924855,0.00112471,85888.0,85887.0,0.36408203]
[1742483925258,0.00212471,85888.0,85887.0,0.36708203]
[1742483925468,0.00112471,85888.0,85887.0,0.36408203]
[1742483926043,0.00112471,85888.0,85887.0,0.37862288]
[1742483926452,0.00112471,85888.0,85887.0,0.36408203]
[1742483927596,0.00212471,85888.0,85887.0,0.36608203]
[1742483927801,0.00112471,85888.0,85887.0,0.36408203]
[1742483928205,0.00212471,85888.0,85887.0,0.36608203]
[1742483929025,0.00012471,85888.0,85887.0,0.36408203]
[1742483929227,0.00012471,85888.0,85887.0,0.37862288]
[1742483929440,7.1e-07,85888.0,85887.0,0.38162288]
[1742483929659,7.1e-07,85888.0,85887.0,0.38662288]
[1742483929862,7.1e-07,85888.0,85887.0,0.43442288]
[1742483930768,0.0003396,85918.0,85917.0,0.244421]
[1742483930963,0.00075521,85918.0,85917.0,0.243421]
[1742483931163,0.00075521,85918.0,85917.0,0.36299603]
[1742483932210,0.00075521,85918.0,85917.0,0.36499603]
[1742483932619,0.00075521,85918.0,85917.0,0.02353076]
[1742483932620,0.01250055,85918.0,85917.0,0.02353076]
[1742483932817,0.3,85903.0,85902.0,0.14356]
[1742483933017,0.3,85903.0,85902.0,0.26313503]
[1742483933227,0.232826,85901.0,85896.0,0.011641]
[1742483933425,0.3,85905.0,85903.0,0.23282]
[1742483933754,0.3,85905.0,85904.0,0.244458]
[1742483934696,0.3,85910.0,85907.0,0.244449]
[1742483935042,0.3,85910.0,85906.0,0.01164]
[1742483935188,0.3,85910.0,85909.0,0.232804]
[1742483935387,0.3,85910.0,85904.0,0.244452]
[1742483935652,0.3,85910.0,85905.0,0.01164]
[1742483935986,0.3,85910.0,85909.0,0.232804]
[1742483936617,0.3,85910.0,85906.0,0.232812]
[1742483936788,0.3,85910.0,85908.0,0.232807]
[1742483936993,0.3,85910.0,85909.0,0.232804]
[1742483937407,0.3,85910.0,85909.0,0.236804]
[1742483937597,0.02704758,85913.0,85912.0,0.232796]
[1742483937735,0.3,85912.0,85902.0,0.011641]
[1742483937945,0.02704758,85913.0,85908.0,0.004]
[1742483938402,0.01164,85909.0,85884.0,1.5001697]
[1742483938620,0.3,85903.0,85900.0,0.25580484]
[1742483938784,0.3,85903.0,85901.0,0.232825]
[1742483938998,0.3,85903.0,85902.0,0.232823]
[1742483939335,0.3,85903.0,85902.0,0.244464]
[1742483939711,0.32153167,85908.0,85905.0,0.232815]
[1742483939951,0.232805,85909.0,85900.0,0.02297784]
[1742483939952,0.30162565,85903.0,85900.0,0.02297784]
[1742483940150,0.3,85901.0,85900.0,0.02297784]
[1742483940396,0.3,85885.0,85878.0,0.011644]
[1742483940571,0.3,85891.0,85890.0,0.02288249]
[1742483940794,0.532848,85893.0,85887.0,0.232861]
[1742483941009,0.011642,85892.0,85884.0,1.52360512]
[1742483941209,0.011642,85892.0,85877.0,0.011644]
[1742483941210,0.3,85884.0,85877.0,0.011644]
[1742483941420,0.3,85884.0,85883.0,0.244517]
[1742483941599,0.3,85884.0,85883.0,0.38722649]
[1742483941819,0.3,85884.0,85883.0,0.40176734]
[1742483941982,0.02152614,85892.0,85891.0,0.244495]
[1742483942150,0.02152614,85892.0,85891.0,0.52213088]
[1742483942359,1.4e-07,85892.0,85891.0,0.52213088]
[1742483942586,1.4e-07,85892.0,85891.0,0.5633693]
[1742483942785,0.01173801,85918.0,85917.0,0.244421]
[1742483943057,0.01173801,85918.0,85917.0,0.36399603]
[1742483943058,0.01215362,85918.0,85917.0,0.36399603]
[1742483943414,0.01215362,85918.0,85893.0,0.03954085]
[1742483943615,0.01215362,85918.0,85915.0,0.232788]
[1742483943815,0.24493362,85918.0,85915.0,0.232788]
[1742483944027,0.3,85917.0,85916.0,0.02298981]
[1742483944192,0.24493362,85918.0,85916.0,0.02298981]
[1742483944552,0.54493362,85918.0,85917.0,0.006]
[1742483944804,0.55657262,85918.0,85917.0,0.006]
[1742483945235,0.3,85911.0,85910.0,0.25645573]
[1742483945442,0.3,85914.0,85911.0,0.232799]
[1742483945849,0.3,85914.0,85913.0,0.232793]
[1742483946081,0.3,85914.0,85913.0,0.36400703]
[1742483946309,0.01215362,85918.0,85917.0,0.244421]
[1742483946524,0.01215362,85918.0,85917.0,0.50751603]
[1742483946945,0.00075521,85918.0,85917.0,0.52205688]
[1742483947976,0.01246453,85918.0,85917.0,0.50751603]
[1742483949025,0.01246453,85918.0,85917.0,0.36399603]
[1742483949435,0.31246453,85918.0,85917.0,0.006]
[1742483949859,0.31246453,85918.0,85917.0,0.232782]
[1742483950113,0.3,85911.0,85905.0,0.01164]
[1742483950315,0.32410353,85918.0,85913.0,0.232793]
[1742483950316,0.02410353,85918.0,85913.0,0.232793]
[1742483950513,0.02410353,85918.0,85915.0,0.232788]
[1742483950514,0.3,85916.0,85915.0,0.232788]
[1742483950715,0.3,85916.0,85910.0,0.03529473]
[1742483950716,0.3,85914.0,85910.0,0.02365473]
[1742483950919,0.244428,85915.0,85911.0,0.232798]
[1742483951124,0.3,85914.0,85913.0,0.232791]
[1742483952062,0.01825879,85915.0,85912.0,0.232795]
[1742483952265,0.532799,85911.0,85910.0,0.02365473]
[1742483952423,0.3,85910.0,85904.0,0.01164]
[1742483952596,0.3,85910.0,85908.0,0.26771598]
[1742483952798,0.3,85910.0,85909.0,0.232804]
[1742483953414,0.3,85914.0,85911.0,0.232797]
[1742483953629,0.532791,85914.0,85911.0,0.232797]
[1742483954033,0.3,85914.0,85911.0,0.232799]
[1742483954237,0.3,85913.0,85909.0,0.232804]
[1742483954635,0.32156506,85913.0,85910.0,0.006]
[1742483954935,0.544444,85909.0,85908.0,0.02327198]
[1742483955104,0.011642,85890.0,85880.0,0.011644]
[1742483955326,0.244512,85885.0,85877.0,0.14348]
[1742483955685,0.94981694,85885.0,85874.0,0.232897]
[1742483955818,0.94981694,85885.0,85879.0,0.232885]
[1742483956017,0.70530494,85885.0,85881.0,0.011644]
[1742483956226,0.70530494,85885.0,85883.0,0.232873]
[1742483956627,0.72357039,85885.0,85883.0,0.232873]
[1742483956869,0.72357039,85885.0,85880.0,0.25669691]
[1742483957029,0.73521339,85885.0,85880.0,0.02381491]
[1742483957223,0.74414573,85885.0,85880.0,0.02381491]
[1742483957684,0.74414573,85885.0,85884.0,0.0061696]
[1742483958169,0.74414573,85885.0,85884.0,0.0001696]
[1742483958999,0.74414573,85885.0,85884.0,0.0031696]
[1742483959292,0.97701473,85885.0,85884.0,0.0001696]
[1742483959706,0.97701473,85885.0,85884.0,0.0031696]
[1742483960696,0.73250273,85885.0,85884.0,0.0031696]
[1742483960901,0.76568457,85885.0,85884.0,0.0031696]
[1742483961100,0.75404157,85885.0,85884.0,0.0031696]
[1742483961522,0.75404157,85885.0,85884.0,0.0001696]
[1742483961881,0.75404157,85885.0,85884.0,0.0021696]
[1742483962085,0.73250273,85885.0,85884.0,0.0021696]
[1742483962528,0.73250273,85885.0,85884.0,0.0001696]
[1742483962946,0.73250273,85885.0,85884.0,0.0021696]
[1742483963121,0.40530494,85885.0,85884.0,0.36625963]
[1742483963461,0.14352,85900.0,85891.0,0.244495]
[1742483963637,0.3,85904.0,85891.0,0.36407003]
[1742483964364,0.40530494,85905.0,85891.0,0.37861088]
[1742483964565,0.3,85904.0,85891.0,0.37861088]
[1742483965047,0.3,85904.0,85891.0,0.36407003]
[1742483965048,0.30862181,85901.0,85891.0,0.36407003]
[1742483965257,0.011641,85899.0,85891.0,0.35242803]
[1742483965458,0.53284,85896.0,85891.0,0.37563422]
[1742483965660,0.3,85896.0,85891.0,0.26770119]
[1742483966178,0.3,85896.0,85891.0,0.27370119]
[1742483966331,0.26257481,85901.0,85891.0,0.27370119]
[1742483966555,0.011641,85899.0,85891.0,0.25605919]
[1742483966923,0.3,85896.0,85891.0,0.26205919]
[1742483967097,0.011642,85895.0,85891.0,0.02920619]
[1742483967421,0.3,85895.0,85891.0,0.26205919]
[1742483967640,0.01860166,85892.0,85891.0,0.27370119]
[1742483968018,0.01860166,85892.0,85891.0,0.39327622]
[1742483968265,0.0003392,85892.0,85891.0,0.40781707]
[1742483969200,0.0003392,85892.0,85891.0,0.49081707]
[1742483970013,0.0003392,85892.0,85891.0,0.48481707]
[1742483970430,0.0003392,85892.0,85891.0,0.49081707]
[1742483971253,0.0003392,85892.0,85891.0,0.39327622]
[1742483971462,0.0003392,85892.0,85891.0,0.53679622]
[1742483971668,0.0003392,85892.0,85891.0,0.53079622]
[1742483971873,0.0003392,85892.0,85891.0,0.41122119]
[1742483972236,0.0003392,85892.0,85891.0,0.53679622]
[1742483972776,0.0003392,85892.0,85891.0,0.53079622]
[1742483973195,0.0003392,85892.0,85891.0,0.53679622]
[1742483973818,0.0003392,85892.0,85891.0,0.55133707]
[1742483974387,0.0003392,85892.0,85891.0,0.59873707]
[1742483974925,0.0003392,85892.0,85891.0,0.59273707]
[1742483975554,2e-07,85892.0,85891.0,0.59773707]
[1742483976049,2e-07,85892.0,85891.0,0.60373707]
[1742483976250,2e-07,85892.0,85891.0,0.59873707]
[1742483976794,2e-07,85892.0,85891.0,0.39327622]
[1742483977003,2e-07,85892.0,85891.0,0.02920619]
[1742483977215,0.5444922,85892.0,85891.0,0.02920619]
[1742483977415,0.96805966,85892.0,85891.0,0.006]
[1742483977831,1.31108703,85892.0,85891.0,0.00299065]
[1742483978241,0.544512,85885.0,85871.0,0.011645]
[1742483978441,0.544512,85885.0,85873.0,0.232901]
[1742483978650,0.544512,85885.0,85876.0,0.232891]
[1742483978853,0.3,85885.0,85883.0,0.232874]
[1742483979043,0.3,85885.0,85884.0,0.2330416]
[1742483979205,0.32155765,85885.0,85884.0,0.2330416]
[1742483979740,0.32155765,85885.0,85884.0,0.2350416]
[1742483979949,0.3,85885.0,85884.0,0.2350416]
[1742483980307,0.3,85885.0,85884.0,0.36625963]
[1742483980736,0.3,85885.0,85884.0,0.2350416]
[1742483980934,0.94981694,85885.0,85884.0,0.0021696]
[1742483981534,0.94981694,85885.0,85884.0,0.0001696]
[1742483981940,0.94981694,85885.0,85884.0,0.0051696]
[1742483982304,0.94981694,85885.0,85884.0,0.0001696]
[1742483982524,0.97137962,85885.0,85884.0,0.0021696]
[1742483982735,0.97137962,85885.0,85846.0,0.011648]
[1742483982736,0.3,85855.0,85846.0,0.011648]
[1742483982939,0.011646,85865.0,85846.0,0.011648]
[1742483982940,0.011648,85850.0,85846.0,0.00012471]
[1742483983143,0.3,85847.0,85846.0,0.00012471]
[1742483983570,0.31173207,85847.0,85846.0,0.00012471]
[1742483984385,0.31173207,85847.0,85846.0,0.01177271]
[1742483984589,0.32034748,85847.0,85846.0,0.01177271]
[1742483985021,0.31173207,85847.0,85846.0,0.00012471]
[1742483985227,0.33000381,85847.0,85846.0,0.00012471]
[1742483985382,0.33000381,85847.0,85846.0,0.01177271]
[1742483985791,0.33000381,85847.0,85846.0,0.01677271]
[1742483986132,0.33000381,85847.0,85846.0,0.00012471]
[1742483986345,0.33000381,85847.0,85846.0,0.01177271]
[1742483986544,0.33000381,85847.0,85846.0,0.13634774]
[1742483986756,0.33000381,85847.0,85846.0,0.15088859]
[1742483987101,0.33000381,85847.0,85846.0,0.13634774]
[1742483987745,0.33000381,85847.0,85846.0,0.01677271]
[1742483988704,0.33000381,85847.0,85846.0,0.00512471]
[1742483989778,0.33000381,85847.0,85846.0,0.01177271]
[1742483989983,0.33000381,85847.0,85846.0,0.01677271]
[1742483990437,0.33000381,85847.0,85846.0,0.01177271]
[1742483990832,0.33000381,85847.0,85846.0,0.00012471]
[1742483991650,0.73530875,85847.0,85846.0,0.00012471]
[1742483991865,0.73530875,85847.0,85846.0,0.00412471]
[1742483992076,0.3,85844.0,85832.0,0.15517]
[1742483992282,0.3,85842.0,85816.0,0.0496]
[1742483992596,0.3,85842.0,85814.0,0.11175769]
[1742483992597,0.01165,85830.0,85814.0,0.11175769]
[1742483992768,0.01165,85830.0,85819.0,0.02323428]
[1742483992769,0.3,85823.0,85819.0,0.02323428]
[1742483992977,0.3,85821.0,85819.0,0.02323428]
[1742483994692,0.3,85821.0,85819.0,0.25628128]
[1742483994833,0.30895714,85821.0,85819.0,0.25628128]
[1742483995036,0.30895714,85821.0,85820.0,0.011652]
[1742483995589,0.40530494,85822.0,85821.0,0.244695]
[1742483995779,0.40530494,85822.0,85821.0,0.37881088]
[1742483996530,0.70530494,85822.0,85821.0,0.37881088]
[1742483997372,0.70530494,85822.0,85821.0,0.36715888]
[1742483997373,0.3,85822.0,85821.0,0.36715888]
[1742483997580,0.3,85822.0,85819.0,0.02323428]
[1742483997581,0.3,85821.0,85819.0,0.02323428]
[1742483997786,0.3,85821.0,85820.0,0.233045]
[1742483997995,0.3,85821.0,85820.0,0.244697]
[1742483998208,0.3,85821.0,85820.0,0.249697]
[1742483998647,0.3,85821.0,85820.0,0.244697]
[1742483998844,0.3,85821.0,85820.0,0.37881288]
[1742483999458,0.3,85821.0,85820.0,0.38481288]
[1742484000314,0.40530494,85822.0,85821.0,0.25923585]
[1742484000493,0.40530494,85822.0,85821.0,1.95581088]
[1742484000694,0.3,85844.0,85843.0,0.232983]
[1742484000898,0.70530494,85844.0,85843.0,0.232983]
[1742484001301,0.70530494,85844.0,85843.0,0.37874788]
[1742484001526,0.40530494,85844.0,85843.0,0.37874788]
[1742484001858,0.40530494,85844.0,85843.0,0.13411588]
[1742484001983,0.40530494,85844.0,85843.0,0.36709888]
[1742484002187,0.41411823,85844.0,85839.0,0.14352]
[1742484002401,0.41411823,85844.0,85843.0,0.236983]
[1742484002610,0.71411823,85844.0,85843.0,0.0268646]
[1742484002810,0.94709823,85844.0,85843.0,0.004]
[1742484003014,0.95874723,85844.0,85829.0,0.02352081]
[1742484003215,0.3,85833.0,85829.0,0.02352081]
[1742484003507,0.3,85833.0,85822.0,0.14352]
[1742484003508,0.01165,85831.0,85822.0,0.14352]
[1742484003729,0.3,85826.0,85818.0,0.233051]
[1742484004137,0.3,85826.0,85815.0,0.55464]
[1742484004335,0.3,85826.0,85822.0,0.02284965]
[1742484004540,0.53303,85826.0,85822.0,0.02284965]
[1742484004748,0.533037,85823.0,85822.0,0.02284965]
[1742484005067,0.3,85823.0,85822.0,0.02284965]
[1742484005296,0.3,85823.0,85814.0,0.11175769]
[1742484005297,0.533059,85815.0,85814.0,0.11175769]
[1742484005497,0.3,85815.0,85814.0,0.11175769]
[1742484006398,0.3,85815.0,85814.0,0.13544333]
[1742484006602,0.31827731,85815.0,85814.0,0.13544333]
[1742484006808,0.31827731,85815.0,85814.0,0.13561293]
[1742484008276,0.55133631,85815.0,85814.0,0.13561293]
[1742484008478,0.95664125,85815.0,85814.0,0.13561293]
[1742484008662,0.72358225,85815.0,85814.0,0.13561293]
[1742484009273,0.70530494,85815.0,85814.0,0.13561293]
[1742484009419,0.71398652,85815.0,85814.0,0.13561293]
[1742484009772,0.71398652,85815.0,85814.0,0.37267493]
[1742484009980,0.71398652,85815.0,85814.0,0.13961293]
[1742484010418,0.71398652,85815.0,85814.0,0.37267493]
[1742484010587,0.71398652,85815.0,85814.0,0.51844381]
[1742484011169,0.71398652,85815.0,85814.0,2.01844381]
[1742484011372,0.40530494,85829.0,85828.0,0.244675]
[1742484011773,0.40530494,85829.0,85828.0,0.233024]
[1742484012581,0.70530494,85829.0,85828.0,0.233024]
[1742484012865,0.70530494,85829.0,85828.0,0.235024]
[1742484013083,0.71402158,85829.0,85828.0,0.233024]
[1742484013287,0.40530494,85829.0,85828.0,0.37879088]
[1742484013907,0.40530494,85829.0,85828.0,0.237024]
[1742484014080,0.40530494,85829.0,85828.0,0.004]
[1742484014283,0.3,85828.0,85818.0,0.01454085]
[1742484014483,0.011651,85823.0,85810.0,0.0001696]
[1742484014888,0.3,85821.0,85810.0,0.0001696]
[1742484015085,0.533059,85815.0,85810.0,0.0001696]
[1742484015288,0.544711,85815.0,85810.0,0.0001696]
[1742484016519,0.544711,85815.0,85814.0,0.11492729]
[1742484016686,0.544711,85815.0,85814.0,0.11192729]
[1742484017087,0.544711,85815.0,85814.0,0.11392729]
[1742484017808,0.33047552,85815.0,85814.0,0.11392729]
[1742484018218,0.73578046,85815.0,85814.0,0.11392729]
[1742484018623,0.98049146,85815.0,85814.0,0.11392729]
[1742484019025,0.73578046,85815.0,85814.0,0.11392729]
[1742484019397,0.71422285,85815.0,85814.0,0.11392729]
[1742484020131,0.40530494,85815.0,85814.0,0.35864229]
[1742484020341,0.40530494,85829.0,85828.0,0.244675]
[1742484020543,0.40530494,85829.0,85828.0,0.35259903]
[1742484020960,0.70530494,85829.0,85828.0,0.26309503]
[1742484021144,0.70530494,85829.0,85823.0,0.233035]
[1742484021145,0.011651,85826.0,85814.0,0.11392729]
[1742484021370,0.3,85823.0,85814.0,0.11392729]
[1742484021801,0.533044,85821.0,85814.0,0.11392729]
[1742484022039,0.311652,85821.0,85814.0,0.11392729]
[1742484022210,0.3,85819.0,85814.0,0.11392729]
[1742484022487,0.3,85819.0,85814.0,0.11192729]
[1742484022694,0.3,85821.0,85814.0,0.11192729]
[1742484022839,0.533043,85821.0,85814.0,0.11192729]
[1742484023268,0.544711,85815.0,85814.0,0.11192729]
[1742484023451,0.3,85815.0,85814.0,0.11392729]
[1742484023631,0.3,85815.0,85814.0,0.11192729]
[1742484024020,0.3,85815.0,85814.0,0.34598929]
[1742484024223,0.3,85815.0,85814.0,0.34498929]
[1742484024424,0.3,85815.0,85814.0,0.46456432]
[1742484024627,0.3,85815.0,85814.0,0.49075817]
[1742484025030,0.40530494,85822.0,85821.0,0.244695]
[1742484025232,0.40530494,85822.0,85821.0,0.37881088]
[1742484025583,0.01827624,85830.0,85829.0,0.244672]
[1742484025826,0.40530494,85843.0,85831.0,0.233016]
[1742484025998,0.01827326,85836.0,85831.0,0.11957503]
[1742484026209,0.01827326,85836.0,85831.0,0.36423803]
[1742484026416,0.3,85834.0,85829.0,0.14352]
[1742484026961,0.31165,85834.0,85833.0,0.02295933]
[1742484027170,0.26292626,85836.0,85831.0,0.005]
[1742484027371,0.4086,85833.0,85832.0,0.0229967]
[1742484027571,0.7086,85833.0,85832.0,0.53075473]
[1742484028141,0.7086,85833.0,85832.0,0.51910473]
[1742484028323,0.7086,85833.0,85832.0,0.53075473]
[1742484029921,0.7086,85833.0,85832.0,0.54529558]
[1742484030245,0.7086,85833.0,85832.0,0.54929558]
[1742484030469,0.4086,85858.0,85845.0,0.011648]
[1742484030753,0.4086,85858.0,85835.0,0.233005]
[1742484030754,0.3795689,85890.0,85869.0,0.011645]
[1742484030984,0.00046362,85870.0,85869.0,0.26309503]
[1742484031217,0.00046362,85870.0,85864.0,0.02304341]
[1742484031218,0.3,85869.0,85864.0,0.02304341]
[1742484031451,0.42607952,85870.0,85864.0,0.02304341]
[1742484031452,0.13786138,85870.0,85866.0,0.232921]
[1742484031669,0.13786138,85870.0,85865.0,0.26309503]
[1742484032140,0.00340575,85869.0,85865.0,0.26309503]
[1742484032365,0.00340575,85869.0,85865.0,0.14352]
[1742484032589,0.00340575,85869.0,85836.0,0.005]
[1742484032590,0.3,85866.0,85860.0,0.14348]
[1742484032824,0.00288179,85865.0,85860.0,0.14348]
[1742484033254,0.1256159,85868.0,85860.0,0.14348]
[1742484033585,0.3585319,85868.0,85860.0,0.14348]
[1742484033818,0.3,85860.0,85857.0,0.13248]
[1742484034185,0.3,85860.0,85849.0,0.232965]
[1742484034387,0.232961,85851.0,85850.0,0.14348]
[1742484034594,0.232961,85851.0,85846.0,0.55476]
[1742484034595,0.3,85850.0,85846.0,0.55476]
[1742484034806,0.3,85846.0,85829.0,0.011651]
[1742484035027,0.3,85844.0,85833.0,0.01165]
[1742484035394,0.3,85844.0,85839.0,0.232992]
[1742484035590,0.00288009,85843.0,85834.0,0.11957503]
[1742484035812,0.00288009,85843.0,85842.0,0.02306667]
[1742484036171,0.42849599,85843.0,85842.0,0.02306667]
[1742484036372,0.42849599,85843.0,85829.0,0.23302]
[1742484036373,0.3,85842.0,85828.0,0.65840439]
[1742484036750,0.43714161,85843.0,85828.0,0.10376439]
[1742484036751,0.3,85830.0,85828.0,0.10376439]
[1742484037265,0.00283906,85829.0,85828.0,0.10376439]
[1742484037512,0.00283906,85829.0,85828.0,0.13122603]
[1742484037752,0.3,85842.0,85837.0,0.232997]
[1742484037980,0.01448806,85841.0,85832.0,0.14348]
[1742484038506,0.532996,85839.0,85832.0,0.14348]
[1742484038726,0.3,85839.0,85832.0,0.14348]
[1742484038971,0.00283906,85838.0,85832.0,0.14348]
[1742484039216,0.00283906,85838.0,85828.0,0.006]
[1742484039459,0.00283906,85838.0,85831.0,0.233014]
[1742484039666,0.00283906,85838.0,85837.0,0.02362602]
[1742484039869,0.3,85842.0,85837.0,0.02362602]
[1742484039997,0.3,85842.0,85838.0,0.244644]
[1742484040199,0.3,85842.0,85840.0,0.232991]
[1742484040399,0.3,85842.0,85837.0,0.25662502]
[1742484040603,0.777686,85841.0,85837.0,0.02362602]
[1742484040804,0.3,85840.0,85837.0,0.02362602]
[1742484041024,0.3,85839.0,85838.0,0.232996]
[1742484041434,0.3,85839.0,85838.0,0.235996]
[1742484041842,0.3,85839.0,85838.0,0.003]
[1742484042273,0.3,85838.0,85837.0,0.25662202]
[1742484042456,0.3,85839.0,85837.0,0.25662202]
[1742484042457,0.3,85842.0,85840.0,0.244638]
[1742484042662,0.1256159,85842.0,85841.0,0.011649]
[1742484042973,0.253953,85860.0,85850.0,0.232962]
[1742484042974,0.3,85858.0,85850.0,0.232962]
[1742484043178,0.3,85856.0,85850.0,0.232962]
[1742484043317,0.3758499,85857.0,85846.0,0.376415]
[1742484043318,0.19181763,85855.0,85846.0,0.376415]
[1742484043523,0.00283663,85855.0,85848.0,0.232969]
[1742484044446,0.00283663,85855.0,85850.0,0.003]
[1742484044798,0.00283663,85855.0,85853.0,0.232954]
[1742484045007,0.3,85853.0,85848.0,0.003]
[1742484045365,0.3,85851.0,85842.0,0.14344]
[1742484045570,0.00283663,85850.0,85843.0,0.11957503]
[1742484045783,0.00283663,85850.0,85844.0,0.011649]
[1742484046001,0.00283663,85850.0,85849.0,0.02361902]
[1742484046698,0.3,85851.0,85849.0,0.02361902]
[1742484046903,0.30283663,85850.0,85849.0,0.02361902]
[1742484047133,0.311648,85847.0,85831.0,0.0001695]
[1742484047332,0.3,85840.0,85832.0,0.26301503]
[1742484047514,0.3,85840.0,85834.0,0.233006]
[1742484047720,0.00283663,85839.0,85833.0,0.233009]
[1742484048015,0.01448563,85839.0,85831.0,0.0001695]
[1742484048223,0.3,85837.0,85831.0,0.0001695]
[1742484048607,0.3,85835.0,85834.0,0.02372169]
[1742484048809,0.3,85835.0,85834.0,0.006]
[1742484049015,0.30283901,85835.0,85831.0,0.0001695]
[1742484050179,0.00283901,85835.0,85831.0,0.02337525]
[1742484050496,0.3,85838.0,85831.0,0.02337525]
[1742484050497,0.3,85833.0,85831.0,0.02837525]
[1742484050854,0.3,85833.0,85831.0,0.02337525]
[1742484051130,0.00283901,85832.0,85831.0,0.02937525]
[1742484051338,0.00283901,85832.0,85831.0,0.02337525]
[1742484051547,0.00283901,85832.0,85831.0,0.40215713]
[1742484051752,0.1256159,85834.0,85833.0,0.25920085]
[1742484051924,0.4256159,85834.0,85833.0,0.37877588]
[1742484052133,0.1256159,85834.0,85833.0,0.37877588]
[1742484052291,0.1256159,85834.0,85833.0,1.87877588]
[1742484053174,0.4256159,85834.0,85833.0,1.86423503]
[1742484054118,0.4256159,85834.0,85833.0,0.36423503]